[Event "Modransky Cup 2025"]
[Site "Modra"]
[Date "2025.02.20"]
[Round "1.11"]
[White "Janik, Marek Tobias"]
[Black "Hrckova, Anna"]
[Result "1-0"]
[Annotator "ChessBase"]
[ECO "A23"]
[WhiteElo "2002"]
[BlackElo "1655"]
[PlyCount "53"]
[EventDate "2025.02.20"]
[EventCountry "SVK"]
[SourceTitle "playchess.com"]
[Source "ChessBase"]
[SourceQuality "1"]
[TimeControl "5400+30"]

1. c4 {[%emt 0:00:17]} e5 {[%emt 0:00:08]} 2. Nc3 {[%emt 0:00:06]} Nf6 {[%emt 0:00:31]} 3. g3 {[%emt 0:00:13]} c6 {[%emt 0:00:32]} 4. d4 {[%emt 0:00:23]} exd4 {[%emt 0:01:12]} 5. Qxd4 {[%emt 0:00:07]} d5 {[%emt 0:02:32]} 6. cxd5 {[%emt 0:01:34]} cxd5 {[%emt 0:00:47]} 7. Bg2 {[%emt 0:03:17]} Nc6 {[%emt 0:00:57]} 8. Qd1 {[%emt 0:00:22]} Bb4 {[%emt 0:02:43]} 9. Bd2 {[%emt 0:00:20]} Be6 {[%emt 0:01:54]} 10. a3 {[%emt 0:03:38]} Ba5 {[%emt 0:00:13]} 11. Nf3 {[%emt 0:02:48]} h6 {[%emt 0:02:13]} 12. O-O {[%emt 0:07:26]} O-O {[%emt 0:00:31]} 13. b4 {[%emt 0:04:12]} Bc7 {[%emt 0:02:20]} 14. Nb5 {[%emt 0:01:53]} Bb6 {[%emt 0:02:52]} 15. Bc3 {[%emt 0:01:42]} Ne4 {[%emt 0:25:59]} 16. Bb2 {[%emt 0:00:10]} Rc8 {[%emt 0:06:05]} 17. e3 {[%emt 0:08:11]} Ne7 {[%emt 0:04:01]} 18. Nbd4 {[%emt 0:04:19]} Nf5 {[%emt 0:02:26]} 19. Rc1 {[%emt 0:13:32]} Qd6 {[%emt 0:07:17]} 20. Qd3 {[%emt 0:02:56]} a6 {[%emt 0:00:30]} 21. Rcd1 {[%emt 0:08:30]} Rfd8 {[%emt 0:01:08]} 22. Rfe1 {[%emt 0:02:39]} Rc4 {[%emt 0:06:23]} 23. Nd2 {[%emt 0:04:07]} Nxd2 {[%emt 0:01:02]} 24. Nxf5 {[%emt 0:00:14]} Kh7 {[%emt 0:05:13]} 25. Be4 {[%emt 0:15:03]} h5 {[%emt 0:03:06]} 26. h4 {[%emt 0:13:05]} Kg6 {[%emt 0:18:40]} 27. Kh2 {[%emt 0:00:50]} 1-0

[Event "Modransky Cup 2025"]
[Site "Modra"]
[Date "2025.02.20"]
[Round "1.12"]
[White "Vorsilka, Jiri"]
[Black "Kapinaj, Matus"]
[Result "0-1"]
[Annotator "NA"]
[ECO "D00"]
[WhiteElo "1653"]
[BlackElo "1999"]
[PlyCount "114"]
[EventDate "2025.02.20"]
[EventCountry "SVK"]
[SourceTitle "playchess.com"]
[Source "ChessBase"]
[SourceQuality "1"]
[TimeControl "5400+30"]

1. d4 {[%emt 0:00:10]} Nf6 {[%emt 0:00:12]} 2. Nc3 {[%emt 0:00:12]} d5 {[%emt 0:00:25]} 3. Bf4 {[%emt 0:00:10]} c6 {[%emt 0:00:40]} 4. e3 {[%emt 0:00:14]} Bf5 {[%emt 0:00:11]} 5. f3 {[%emt 0:00:20]} h5 {[%emt 0:01:04]} 6. Bd3 {[%emt 0:01:01]} Bxd3 {[%emt 0:00:15]} 7. Qxd3 {[%emt 0:00:12]} e6 {[%emt 0:00:06]} 8. Nge2 {[%emt 0:01:05]} Nbd7 {[%emt 0:01:47]} 9. O-O {[%emt 0:01:54]} h4 {[%emt 0:00:43]} 10. h3 {[%emt 0:02:31]} Be7 {[%emt 0:02:12]} 11. e4 {[%emt 0:01:07]} Nh5 {[%emt 0:06:15]} 12. e5 {[%emt 0:05:16]} Nxf4 {[%emt 0:01:43]} 13. Nxf4 {[%emt 0:00:14]} Qb6 {[%emt 0:01:47]} 14. Na4 {[%emt 0:00:55]} Qb5 {[%emt 0:00:48]} 15. Qxb5 {[%emt 0:00:24]} cxb5 {[%emt 0:00:09]} 16. Nc3 {[%emt 0:00:10]} a6 {[%emt 0:00:23]} 17. Nce2 {[%emt 0:02:07]} Rc8 {[%emt 0:00:50]} 18. c3 {[%emt 0:00:30]} Nb6 {[%emt 0:00:27]} 19. b4 {[%emt 0:01:29]} Na4 {[%emt 0:01:15]} 20. Rfc1 {[%emt 0:00:56]} Bg5 {[%emt 0:00:11]} 21. Rc2 {[%emt 0:01:05]} Bxf4 {[%emt 0:06:11]} 22. Nxf4 {[%emt 0:00:07]} Rc4 {[%emt 0:01:50]} 23. Rac1 {[%emt 0:00:42]} Ke7 {[%emt 0:02:09]} 24. Nd3 {[%emt 0:01:12]} b6 {[%emt 0:05:21]} 25. Nb2 {[%emt 0:00:49]} Nxb2 {[%emt 0:00:24]} 26. Rxb2 {[%emt 0:00:06]} Rhc8 {[%emt 0:01:01]} 27. Rbc2 {[%emt 0:00:09]} f5 {[%emt 0:00:21]} 28. f4 {[%emt 0:00:27]} a5 {[%emt 0:00:31]} 29. a3 {[%emt 0:00:12]} Kf7 {[%emt 0:00:44]} 30. Kf2 {[%emt 0:00:21]} axb4 {[%emt 0:01:42]} 31. axb4 {[%emt 0:00:07]} Ra8 {[%emt 0:00:07]} 32. Kf3 {[%emt 0:01:59]} Ra3 {[%emt 0:00:36]} 33. Kf2 {[%emt 0:00:32]} Kg6 {[%emt 0:02:22]} 34. Ke2 {[%emt 0:01:12]} Kh5 {[%emt 0:00:21]} 35. Kd2 {[%emt 0:00:32]} g5 {[%emt 0:00:34]} 36. Rf1 {[%emt 0:01:39]} g4 {[%emt 0:02:51]} 37. hxg4+ {[%emt 0:00:31]} Kxg4 {[%emt 0:00:07]} 38. Rf3 {[%emt 0:00:51]} Rc7 {[%emt 0:01:39]} 39. Ke2 {[%emt 0:05:01]} Rca7 {[%emt 0:01:33]} 40. Kf2 {[%emt 0:00:29]} Ra2 {[%emt 0:00:10]} 41. Rxa2 {[%emt 0:00:15]} Rxa2+ {[%emt 0:00:05]} 42. Kg1 {[%emt 0:00:08]} Re2 {[%emt 0:00:16]} 43. Kf1 {[%emt 0:00:39]} Re4 {[%emt 0:00:10]} 44. Rd3 {[%emt 0:00:37]} Rxf4+ {[%emt 0:00:15]} 45. Ke2 {[%emt 0:00:10]} Re4+ {[%emt 0:00:13]} 46. Kf2 {[%emt 0:00:16]} f4 {[%emt 0:00:41]} 47. Rd1 {[%emt 0:00:20]} Re3 {[%emt 0:00:14]} 48. Rc1 {[%emt 0:00:09]} Kf5 {[%emt 0:00:32]} 49. Rh1 {[%emt 0:00:48]} Kg4 {[%emt 0:00:52]} 50. Rc1 {[%emt 0:00:13]} Rd3 {[%emt 0:00:41]} 51. Ke2 {[%emt 0:00:21]} Rg3 {[%emt 0:00:21]} 52. Kf2 {[%emt 0:00:09]} f3 {[%emt 0:00:33]} 53. gxf3+ {[%emt 0:00:30]} Rxf3+ {[%emt 0:00:06]} 54. Ke2 {[%emt 0:00:23]} h3 {[%emt 0:00:15]} 55. Rg1+ {[%emt 0:00:55]} Rg3 {[%emt 0:00:14]} 56. Rf1 {[%emt 0:00:21]} h2 {[%emt 0:00:26]} 57. Rh1 {[%emt 0:00:07]} Kh3 {[%emt 0:00:11]} 0-1

[Event "Modransky Cup 2025"]
[Site "Modra"]
[Date "2025.02.20"]
[Round "1.13"]
[White "Skaraiev, Mykhailo"]
[Black "Banas, Kamil"]
[Result "1-0"]
[Annotator "ChessBase"]
[ECO "D35"]
[WhiteElo "1980"]
[BlackElo "1651"]
[PlyCount "57"]
[EventDate "2025.02.20"]
[EventCountry "SVK"]
[SourceTitle "playchess.com"]
[Source "ChessBase"]
[SourceQuality "1"]
[TimeControl "5400+30"]

1. d4 {[%emt 0:00:07]} d5 {[%emt 0:02:17]} 2. c4 {[%emt 0:00:09]} e6 {[%emt 0:00:22]} 3. Nc3 {[%emt 0:00:33]} Nf6 {[%emt 0:00:26]} 4. cxd5 {[%emt 0:01:12]} Nxd5 {[%emt 0:03:08]} 5. e4 {[%emt 0:00:58]} Nxc3 {[%emt 0:04:13]} 6. bxc3 {[%emt 0:00:08]} Be7 {[%emt 0:01:45]} 7. Nf3 {[%emt 0:00:42]} O-O {[%emt 0:00:18]} 8. Bd3 {[%emt 0:00:54]} Nd7 {[%emt 0:01:37]} 9. O-O {[%emt 0:00:48]} b6 {[%emt 0:01:57]} 10. Be3 {[%emt 0:03:14]} Bb7 {[%emt 0:02:36]} 11. Qc2 {[%emt 0:02:50]} Rc8 {[%emt 0:01:27]} 12. c4 {[%emt 0:09:22]} Re8 {[%emt 0:21:36]} 13. Rad1 {[%emt 0:12:31]} Bf8 {[%emt 0:04:01]} 14. c5 {[%emt 0:02:50]} Nb8 {[%emt 0:09:55]} 15. Bb5 {[%emt 0:08:20]} c6 {[%emt 0:07:47]} 16. Be2 {[%emt 0:12:45]} Qe7 {[%emt 0:04:59]} 17. Rb1 {[%emt 0:02:53]} bxc5 {[%emt 0:06:39]} 18. dxc5 {[%emt 0:04:43]} Rc7 {[%emt 0:03:06]} 19. Bf4 {[%emt 0:00:59]} Rd7 {[%emt 0:04:51]} 20. Bd6 {[%emt 0:07:16]} Qf6 {[%emt 0:02:49]} 21. e5 {[%emt 0:01:50]} Qg6 {[%emt 0:00:32]} 22. Bd3 {[%emt 0:00:41]} Qh5 {[%emt 0:01:04]} 23. Rb4 {[%emt 0:01:21]} f5 {[%emt 0:05:02]} 24. exf6 {[%emt 0:01:19]} Bxd6 {[%emt 0:01:09]} 25. cxd6 {[%emt 0:02:13]} gxf6 {[%emt 0:04:47]} 26. Rh4 {[%emt 0:01:02]} Qd5 {[%emt 0:00:39]} 27. Bxh7+ {[%emt 0:01:03]} Kf8 {[%emt 0:00:06]} 28. Rd1 {[%emt 0:02:14]} Qb5 {[%emt 0:02:55]} 29. Qg6 {[%emt 0:00:35]} 1-0

[Event "Modransky Cup 2025"]
[Site "Modra"]
[Date "2025.02.20"]
[Round "1.14"]
[White "Chojnacki, Kevin"]
[Black "Galla, Richard"]
[Result "0-1"]
[Annotator "NA"]
[ECO "A14"]
[WhiteElo "1643"]
[BlackElo "1960"]
[PlyCount "66"]
[EventDate "2025.02.20"]
[EventCountry "SVK"]
[SourceTitle "playchess.com"]
[Source "ChessBase"]
[SourceQuality "1"]
[TimeControl "5400+30"]

1. Nf3 {[%emt 0:00:07]} d5 {[%emt 0:00:26]} 2. c4 {[%emt 0:00:15]} e6 {[%emt 0:00:10]} 3. b3 {[%emt 0:00:28]} Nf6 {[%emt 0:00:08]} 4. Bb2 {[%emt 0:00:02]} Be7 {[%emt 0:00:08]} 5. g3 {[%emt 0:00:01]} O-O {[%emt 0:00:08]} 6. Bg2 {[%emt 0:00:11]} c5 {[%emt 0:00:05]} 7. O-O {[%emt 0:01:01]} Nc6 {[%emt 0:01:21]} 8. d3 {[%emt 0:01:36]} b6 {[%emt 0:01:51]} 9. Nbd2 {[%emt 0:00:42]} Bb7 {[%emt 0:01:07]} 10. cxd5 {[%emt 0:04:24]} Nxd5 {[%emt 0:00:46]} 11. a3 {[%emt 0:02:51]} Bf6 {[%emt 0:03:43]} 12. Bxf6 {[%emt 0:00:39]} Qxf6 {[%emt 0:00:36]} 13. Ne4 {[%emt 0:00:11]} Qe7 {[%emt 0:00:03]} 14. Rc1 {[%emt 0:02:57]} Rac8 {[%emt 0:02:24]} 15. Nc3 {[%emt 0:06:20]} Rfd8 {[%emt 0:01:10]} 16. Nxd5 {[%emt 0:04:39]} exd5 {[%emt 0:00:10]} 17. e3 {[%emt 0:02:51]} d4 {[%emt 0:04:10]} 18. e4 {[%emt 0:00:30]} c4 {[%emt 0:10:03]} 19. bxc4 {[%emt 0:00:00]} Qxa3 {[%emt 0:00:10]} 20. Ra1 {[%emt 0:02:06]} Qe7 {[%emt 0:06:09]} 21. Nh4 {[%emt 0:00:54]} a5 {[%emt 0:02:45]} 22. f4 {[%emt 0:01:50]} g6 {[%emt 0:02:51]} 23. Bh3 {[%emt 0:01:11]} Ra8 {[%emt 0:01:52]} 24. Rb1 {[%emt 0:11:16]} Nb4 {[%emt 0:01:37]} 25. f5 {[%emt 0:02:36]} Bc8 {[%emt 0:16:38]} 26. Qd2 {[%emt 0:02:00]} f6 {[%emt 0:05:09]} 27. Bg2 {[%emt 0:02:31]} g5 {[%emt 0:01:30]} 28. e5 {[%emt 0:01:37]} Ra7 {[%emt 0:01:52]} 29. Nf3 {[%emt 0:04:48]} Bxf5 {[%emt 0:03:23]} 30. Rxb4 {[%emt 0:00:49]} Qxb4 {[%emt 0:00:41]} 31. Qxb4 {[%emt 0:02:05]} axb4 {[%emt 0:00:04]} 32. exf6 {[%emt 0:00:38]} Bxd3 {[%emt 0:00:37]} 33. f7+ {[%emt 0:00:36]} Rxf7 {[%emt 0:00:24]} 0-1

[Event "Modransky Cup 2025"]
[Site "Modra"]
[Date "2025.02.20"]
[Round "1.15"]
[White "Smetana, Peter"]
[Black "Gonda, Jan"]
[Result "1-0"]
[Annotator "ChessBase"]
[ECO "B53"]
[WhiteElo "1947"]
[BlackElo "1633"]
[PlyCount "79"]
[EventDate "2025.02.20"]
[EventCountry "SVK"]
[SourceTitle "playchess.com"]
[Source "ChessBase"]
[SourceQuality "1"]
[TimeControl "5400+30"]

1. e4 {[%emt 0:00:04]} c5 {[%emt 0:00:10]} 2. Nf3 {[%emt 0:00:13]} d6 {[%emt 0:00:08]} 3. d4 {[%emt 0:00:37]} cxd4 {[%emt 0:00:08]} 4. Qxd4 {[%emt 0:00:04]} Nc6 {[%emt 0:00:22]} 5. Bb5 {[%emt 0:00:12]} Bd7 {[%emt 0:00:46]} 6. Bxc6 {[%emt 0:00:08]} Bxc6 {[%emt 0:00:33]} 7. Nc3 {[%emt 0:00:08]} h6 {[%emt 0:06:23]} 8. O-O {[%emt 0:03:58]} e6 {[%emt 0:00:54]} 9. Qd3 {[%emt 0:01:05]} Qc7 {[%emt 0:02:42]} 10. Re1 {[%emt 0:08:19]} a6 {[%emt 0:05:09]} 11. a4 {[%emt 0:02:10]} b6 {[%emt 0:01:05]} 12. Bf4 {[%emt 0:23:53]} Bb7 {[%emt 0:04:33]} 13. Rad1 {[%emt 0:01:12]} Rd8 {[%emt 0:01:03]} 14. Nd2 {[%emt 0:00:39]} e5 {[%emt 0:08:02]} 15. Be3 {[%emt 0:00:35]} Ne7 {[%emt 0:00:51]} 16. Nc4 {[%emt 0:13:53]} Nc8 {[%emt 0:00:36]} 17. Nd5 {[%emt 0:00:59]} Bxd5 {[%emt 0:01:15]} 18. exd5 {[%emt 0:01:37]} b5 {[%emt 0:09:51]} 19. axb5 {[%emt 0:00:20]} axb5 {[%emt 0:00:14]} 20. Na3 {[%emt 0:00:21]} Be7 {[%emt 0:05:38]} 21. Nxb5 {[%emt 0:05:15]} Qb7 {[%emt 0:01:32]} 22. c4 {[%emt 0:01:11]} O-O {[%emt 0:00:23]} 23. Ra1 {[%emt 0:02:07]} Rfe8 {[%emt 0:08:47]} 24. b4 {[%emt 0:05:50]} Bf8 {[%emt 0:02:12]} 25. Red1 {[%emt 0:01:04]} g6 {[%emt 0:05:09]} 26. c5 {[%emt 0:01:41]} dxc5 {[%emt 0:05:46]} 27. bxc5 {[%emt 0:00:18]} Rxd5 {[%emt 0:04:51]} 28. Qxd5 {[%emt 0:00:16]} Qxb5 {[%emt 0:00:14]} 29. Qd7 {[%emt 0:00:43]} Qxd7 {[%emt 0:01:00]} 30. Rxd7 {[%emt 0:00:07]} Ne7 {[%emt 0:02:38]} 31. Rad1 {[%emt 0:01:08]} Nc6 {[%emt 0:03:51]} 32. Rc7 {[%emt 0:01:56]} Nd4 {[%emt 0:03:00]} 33. g3 {[%emt 0:00:59]} Bg7 {[%emt 0:01:56]} 34. Rb1 {[%emt 0:01:32]} Ne6 {[%emt 0:02:37]} 35. Rcb7 {[%emt 0:00:18]} f5 {[%emt 0:01:43]} 36. Rb8 {[%emt 0:00:20]} Rxb8 {[%emt 0:02:15]} 37. Rxb8+ {[%emt 0:00:09]} Kf7 {[%emt 0:00:15]} 38. c6 {[%emt 0:00:15]} f4 {[%emt 0:01:20]} 39. Bb6 {[%emt 0:01:07]} Kf6 {[%emt 0:02:04]} 40. c7 {[%emt 0:00:09]} 1-0

[Event "Modransky Cup 2025"]
[Site "Modra"]
[Date "2025.02.20"]
[Round "1.16"]
[White "Rozboril, Alex"]
[Black "Krajnak, Robert"]
[Result "1-0"]
[Annotator "NA"]
[ECO "B85"]
[WhiteElo "1633"]
[BlackElo "1921"]
[PlyCount "53"]
[EventDate "2025.02.20"]
[EventCountry "SVK"]
[SourceTitle "playchess.com"]
[Source "ChessBase"]
[SourceQuality "1"]
[TimeControl "5400+30"]

1. e4 {[%emt 0:00:04]} c5 {[%emt 0:09:59]} 2. Nf3 {[%emt 0:00:12]} e6 {[%emt 0:00:02]} 3. d4 {[%emt 0:00:44]} cxd4 {[%emt 0:04:26]} 4. Nxd4 {[%emt 0:00:30]} Nc6 {[%emt 0:00:20]} 5. Nc3 {[%emt 0:01:01]} Qc7 {[%emt 0:00:37]} 6. Be3 {[%emt 0:01:28]} a6 {[%emt 0:00:18]} 7. Be2 {[%emt 0:01:59]} Nf6 {[%emt 0:01:44]} 8. O-O {[%emt 0:02:59]} d6 {[%emt 0:00:59]} 9. f4 {[%emt 0:01:03]} Be7 {[%emt 0:00:24]} 10. Qe1 {[%emt 0:13:09]} O-O {[%emt 0:02:21]} 11. Qg3 {[%emt 0:01:29]} Re8 {[%emt 0:01:40]} 12. a4 {[%emt 0:14:01]} Bf8 {[%emt 0:01:53]} 13. Bd3 {[%emt 0:05:47]} Nb4 {[%emt 0:03:43]} 14. Be2 {[%emt 0:15:05]} b6 {[%emt 0:04:26]} 15. Bf3 {[%emt 0:12:59]} Bb7 {[%emt 0:00:53]} 16. Rf2 {[%emt 0:02:11]} d5 {[%emt 0:05:03]} 17. e5 {[%emt 0:03:41]} Ne4 {[%emt 0:01:07]} 18. Bxe4 {[%emt 0:12:18]} dxe4 {[%emt 0:00:46]} 19. f5 {[%emt 0:01:52]} Bc5 {[%emt 0:08:47]} 20. Rd1 {[%emt 0:04:53]} Bd5 {[%emt 0:05:33]} 21. fxe6 {[%emt 0:01:24]} fxe6 {[%emt 0:00:31]} 22. Nxd5 {[%emt 0:01:34]} Nxd5 {[%emt 0:00:54]} 23. c3 {[%emt 0:00:38]} Nxe3 {[%emt 0:00:26]} 24. Qxe3 {[%emt 0:00:14]} Qxe5 {[%emt 0:00:23]} 25. b4 {[%emt 0:00:19]} Bd6 {[%emt 0:02:55]} 26. g3 {[%emt 0:01:08]} Rf8 {[%emt 0:02:31]} 27. Nc6 {[%emt 0:00:32]} 1-0

[Event "Modransky Cup 2025"]
[Site "Modra"]
[Date "2025.02.20"]
[Round "1.18"]
[White "Povysil, Peter"]
[Black "Banas, Samuel"]
[Result "1/2-1/2"]
[Annotator "NA"]
[ECO "D02"]
[WhiteElo "1890"]
[BlackElo "1617"]
[PlyCount "77"]
[EventDate "2025.02.20"]
[EventCountry "SVK"]
[SourceTitle "playchess.com"]
[Source "ChessBase"]
[SourceQuality "1"]
[TimeControl "5400+30"]

1. d4 {[%emt 0:00:06]} d5 {[%emt 0:00:06]} 2. Nc3 {[%emt 0:00:11]} Bf5 {[%emt 0:00:58]} 3. Bf4 {[%emt 0:00:27]} Nf6 {[%emt 0:00:40]} 4. e3 {[%emt 0:01:35]} e6 {[%emt 0:00:25]} 5. Nf3 {[%emt 0:00:39]} Bd6 {[%emt 0:01:05]} 6. Bd3 {[%emt 0:06:24]} Bxd3 {[%emt 0:01:41]} 7. Qxd3 {[%emt 0:00:32]} Bxf4 {[%emt 0:00:19]} 8. exf4 {[%emt 0:00:08]} Qd6 {[%emt 0:00:40]} 9. Ne5 {[%emt 0:01:33]} O-O {[%emt 0:01:51]} 10. O-O {[%emt 0:12:44]} Nbd7 {[%emt 0:01:14]} 11. Nxd7 {[%emt 0:01:18]} Qxd7 {[%emt 0:00:42]} 12. Rfe1 {[%emt 0:01:59]} Rac8 {[%emt 0:01:17]} 13. Ne2 {[%emt 0:03:11]} Rfe8 {[%emt 0:01:48]} 14. Ng3 {[%emt 0:05:17]} b6 {[%emt 0:01:30]} 15. Rad1 {[%emt 0:12:49]} c5 {[%emt 0:00:36]} 16. dxc5 {[%emt 0:02:19]} bxc5 {[%emt 0:00:21]} 17. c3 {[%emt 0:04:38]} Qa4 {[%emt 0:06:52]} 18. Qd2 {[%emt 0:02:48]} Qxa2 {[%emt 0:02:46]} 19. Ra1 {[%emt 0:07:59]} Qb3 {[%emt 0:01:28]} 20. Rxa7 {[%emt 0:00:09]} Ra8 {[%emt 0:00:42]} 21. Rea1 {[%emt 0:05:29]} Rxa7 {[%emt 0:01:34]} 22. Rxa7 {[%emt 0:00:00]} Rb8 {[%emt 0:00:36]} 23. Ra3 {[%emt 0:04:17]} Qb5 {[%emt 0:00:30]} 24. b3 {[%emt 0:00:30]} h6 {[%emt 0:01:18]} 25. f3 {[%emt 0:01:06]} Kf8 {[%emt 0:03:01]} 26. Ne2 {[%emt 0:00:08]} c4 {[%emt 0:00:29]} 27. b4 {[%emt 0:00:20]} Qb7 {[%emt 0:01:04]} 28. Qa2 {[%emt 0:01:47]} Nd7 {[%emt 0:00:56]} 29. Ra7 {[%emt 0:01:53]} Qc8 {[%emt 0:00:27]} 30. Nd4 {[%emt 0:05:22]} Nb6 {[%emt 0:01:30]} 31. Qa5 {[%emt 0:00:12]} Rb7 {[%emt 0:01:44]} 32. Ra6 {[%emt 0:00:49]} Nd7 {[%emt 0:05:10]} 33. Nb5 {[%emt 0:02:54]} Rb8 {[%emt 0:06:10]} 34. Nd4 {[%emt 0:04:08]} Qd8 {[%emt 0:02:48]} 35. Qa2 {[%emt 0:00:17]} Qc7 {[%emt 0:02:03]} 36. Ra7 {[%emt 0:00:48]} Rb7 {[%emt 0:00:17]} 37. Ra8+ {[%emt 0:00:14]} Rb8 {[%emt 0:00:38]} 38. Ra7 {[%emt 0:00:05]} Rb7 {[%emt 0:00:05]} 39. Ra8+ {[%emt 0:00:02]} 1/2-1/2

[Event "Modransky Cup 2025"]
[Site "Modra"]
[Date "2025.02.20"]
[Round "1.19"]
[White "Bucor, Mark"]
[Black "Certik, Jaroslav"]
[Result "1-0"]
[Annotator "NA"]
[ECO "C25"]
[WhiteElo "1875"]
[BlackElo "1579"]
[PlyCount "23"]
[EventDate "2025.02.20"]
[EventCountry "SVK"]
[SourceTitle "playchess.com"]
[Source "ChessBase"]
[SourceQuality "1"]
[TimeControl "5400+30"]

1. e4 {[%emt 0:00:11]} e5 {[%emt 0:00:28]} 2. Nc3 {[%emt 0:00:09]} Nc6 {[%emt 0:01:49]} 3. Bc4 {[%emt 0:00:12]} Bc5 {[%emt 0:02:29]} 4. Qg4 {[%emt 0:00:09]} Qf6 {[%emt 0:05:13]} 5. Nd5 {[%emt 0:00:20]} Bxf2+ {[%emt 0:12:13]} 6. Kd1 {[%emt 0:08:54]} Qh4 {[%emt 0:10:43]} 7. Qxg7 {[%emt 0:01:27]} Qxe4 {[%emt 0:01:49]} 8. Nf6+ {[%emt 0:02:18]} Nxf6 {[%emt 0:04:27]} 9. Bxf7+ {[%emt 0:00:23]} Ke7 {[%emt 0:00:56]} 10. Bd5+ {[%emt 0:00:57]} Kd6 {[%emt 0:02:47]} 11. Bxe4 {[%emt 0:00:20]} Nxe4 {[%emt 0:00:23]} 12. Qxh8 {[%emt 0:00:41]} 1-0

[Event "Modransky Cup 2025"]
[Site "Modra"]
[Date "2025.02.20"]
[Round "1.20"]
[White "Vondruska, Leos"]
[Black "Kukla, Tomas"]
[Result "0-1"]
[Annotator "NA"]
[ECO "B02"]
[WhiteElo "1545"]
[BlackElo "1856"]
[PlyCount "66"]
[EventDate "2025.02.20"]
[EventCountry "SVK"]
[SourceTitle "playchess.com"]
[Source "ChessBase"]
[SourceQuality "1"]
[TimeControl "5400+30"]

1. e4 {[%emt 0:00:06]} Nf6 {[%emt 0:00:11]} 2. Nc3 {[%emt 0:01:15]} d5 {[%emt 0:00:43]} 3. exd5 {[%emt 0:01:23]} Nxd5 {[%emt 0:00:08]} 4. Nxd5 {[%emt 0:00:22]} Qxd5 {[%emt 0:00:08]} 5. Qf3 {[%emt 0:09:20]} Qe5+ {[%emt 0:03:23]} 6. Be2 {[%emt 0:02:44]} Nc6 {[%emt 0:00:17]} 7. c3 {[%emt 0:01:04]} Bf5 {[%emt 0:04:54]} 8. d4 {[%emt 0:03:34]} Qf6 {[%emt 0:01:38]} 9. g4 {[%emt 0:03:10]} Bd7 {[%emt 0:03:54]} 10. Qxf6 {[%emt 0:00:58]} exf6 {[%emt 0:00:31]} 11. Bf4 {[%emt 0:04:08]} O-O-O {[%emt 0:01:37]} 12. O-O-O {[%emt 0:00:38]} Be6 {[%emt 0:02:01]} 13. Kb1 {[%emt 0:02:09]} Bd6 {[%emt 0:06:00]} 14. Bxd6 {[%emt 0:01:10]} Rxd6 {[%emt 0:00:09]} 15. Bf3 {[%emt 0:02:24]} Rhd8 {[%emt 0:02:09]} 16. Ne2 {[%emt 0:01:56]} Ne5 {[%emt 0:01:39]} 17. Ng1 {[%emt 0:04:45]} Nxf3 {[%emt 0:04:34]} 18. Nxf3 {[%emt 0:00:40]} Bxg4 {[%emt 0:00:08]} 19. Rd3 {[%emt 0:00:18]} Bf5 {[%emt 0:00:14]} 20. Kc1 {[%emt 0:00:52]} Bxd3 {[%emt 0:00:17]} 21. Re1 {[%emt 0:00:23]} Bc4 {[%emt 0:00:44]} 22. b3 {[%emt 0:00:35]} Bd5 {[%emt 0:00:42]} 23. Nh4 {[%emt 0:00:45]} Re6 {[%emt 0:00:37]} 24. Rg1 {[%emt 0:00:38]} g6 {[%emt 0:00:31]} 25. c4 {[%emt 0:00:51]} Bxc4 {[%emt 0:00:20]} 26. bxc4 {[%emt 0:00:19]} Rxd4 {[%emt 0:00:08]} 27. Nf3 {[%emt 0:00:26]} Rxc4+ {[%emt 0:00:09]} 28. Kb1 {[%emt 0:00:21]} Re2 {[%emt 0:00:15]} 29. Rf1 {[%emt 0:00:34]} Rcc2 {[%emt 0:00:55]} 30. Nd4 {[%emt 0:00:26]} Rb2+ {[%emt 0:00:07]} 31. Ka1 {[%emt 0:00:28]} Rxa2+ {[%emt 0:00:15]} 32. Kb1 {[%emt 0:00:13]} Reb2+ {[%emt 0:00:34]} 33. Kc1 {[%emt 0:00:11]} Ra1+ {[%emt 0:00:08]} 0-1

[Event "Modransky Cup 2025"]
[Site "Modra"]
[Date "2025.02.20"]
[Round "1.21"]
[White "Osvald, David"]
[Black "Segeda, Milos"]
[Result "1-0"]
[Annotator "NA"]
[ECO "D06"]
[WhiteElo "1852"]
[BlackElo "1519"]
[PlyCount "81"]
[EventDate "2025.02.20"]
[EventCountry "SVK"]
[SourceTitle "playchess.com"]
[Source "ChessBase"]
[SourceQuality "1"]
[TimeControl "5400+30"]

1. d4 {[%emt 0:00:08]} d5 {[%emt 0:00:29]} 2. c4 {[%emt 0:00:11]} b6 {[%emt 0:12:57]} 3. cxd5 {[%emt 0:01:05]} Bb7 {[%emt 0:03:45]} 4. e4 {[%emt 0:01:35]} Ba6 {[%emt 0:03:36]} 5. Bxa6 {[%emt 0:00:52]} Nxa6 {[%emt 0:00:19]} 6. Qa4+ {[%emt 0:00:14]} Qd7 {[%emt 0:02:51]} 7. Qxa6 {[%emt 0:00:20]} Nf6 {[%emt 0:08:35]} 8. Nc3 {[%emt 0:02:42]} c6 {[%emt 0:03:31]} 9. dxc6 {[%emt 0:02:23]} Qxc6 {[%emt 0:11:55]} 10. d5 {[%emt 0:01:14]} Qc8 {[%emt 0:04:39]} 11. Qxc8+ {[%emt 0:00:35]} Rxc8 {[%emt 0:00:16]} 12. Bg5 {[%emt 0:00:48]} Ng4 {[%emt 0:03:35]} 13. Nf3 {[%emt 0:01:04]} f6 {[%emt 0:01:34]} 14. Be3 {[%emt 0:00:39]} e6 {[%emt 0:05:45]} 15. a3 {[%emt 0:01:43]} Bc5 {[%emt 0:00:38]} 16. Bxc5 {[%emt 0:01:35]} Rxc5 {[%emt 0:02:55]} 17. h3 {[%emt 0:00:31]} Nh6 {[%emt 0:02:44]} 18. O-O {[%emt 0:00:17]} e5 {[%emt 0:03:05]} 19. Rfd1 {[%emt 0:00:36]} O-O {[%emt 0:01:15]} 20. Rac1 {[%emt 0:00:39]} a6 {[%emt 0:01:24]} 21. Na4 {[%emt 0:01:10]} Rxc1 {[%emt 0:02:28]} 22. Rxc1 {[%emt 0:00:30]} b5 {[%emt 0:00:30]} 23. Nb6 {[%emt 0:00:59]} Nf7 {[%emt 0:02:01]} 24. Rc8 {[%emt 0:00:38]} Nd6 {[%emt 0:01:00]} 25. Rxf8+ {[%emt 0:00:11]} Kxf8 {[%emt 0:01:01]} 26. Nd7+ {[%emt 0:01:54]} Ke7 {[%emt 0:01:23]} 27. Nc5 {[%emt 0:00:19]} a5 {[%emt 0:00:30]} 28. Nd2 {[%emt 0:00:47]} a4 {[%emt 0:02:05]} 29. Ne6 {[%emt 0:00:30]} Nc4 {[%emt 0:02:27]} 30. Nxc4 {[%emt 0:00:11]} bxc4 {[%emt 0:00:23]} 31. Nxg7 {[%emt 0:00:33]} Kd7 {[%emt 0:03:34]} 32. Kf1 {[%emt 0:00:40]} Kd6 {[%emt 0:00:48]} 33. Ke2 {[%emt 0:00:06]} Kc5 {[%emt 0:05:55]} 34. Nh5 {[%emt 0:01:04]} f5 {[%emt 0:00:59]} 35. exf5 {[%emt 0:00:16]} Kxd5 {[%emt 0:01:14]} 36. Ke3 {[%emt 0:00:18]} Kd6 {[%emt 0:03:48]} 37. Ke4 {[%emt 0:00:07]} h6 {[%emt 0:01:01]} 38. g4 {[%emt 0:00:12]} Kc5 {[%emt 0:01:31]} 39. Kxe5 {[%emt 0:00:12]} c3 {[%emt 0:00:38]} 40. bxc3 {[%emt 0:00:07]} Kc4 {[%emt 0:00:21]} 41. f6 {[%emt 0:00:06]} 1-0